bitfinex/quotes_BTCUSD_20250108
["timestamp","ask_amount","ask_price","bid_price","bid_amount"]
[1736356529473,0.00915249,94013.0,93994.0,0.023]
[1736356529670,0.00915249,94013.0,93996.0,0.0711866]
[1736356529671,0.425528,94001.0,93996.0,0.0711866]
[1736356529870,0.212784,93992.0,93991.0,0.18492636]
[1736356530080,0.212768,93999.0,93998.0,0.06553976]
[1736356530280,0.5858088,94001.0,94000.0,0.13672636]
[1736356530281,0.3730458,94001.0,94000.0,0.13672636]
[1736356530492,0.00015249,94013.0,94005.0,0.06553976]
[1736356530493,0.21075431,94006.0,94005.0,0.06553976]
[1736356530933,0.212738,94012.0,94011.0,0.06553976]
[1736356531074,0.00015249,94013.0,94012.0,0.13672636]
[1736356531277,0.00015249,94013.0,94012.0,0.21832636]
[1736356531508,0.00015249,94013.0,94012.0,0.36962612]
[1736356531675,0.00015249,94013.0,94012.0,0.39046195]
[1736356532502,0.15,94041.0,94040.0,0.0711866]
[1736356532709,0.5228589,94041.0,94040.0,0.0711866]
[1736356532921,0.5228589,94041.0,94040.0,0.13672636]
[1736356533135,0.0719,94041.0,94040.0,0.36392612]
[1736356533339,0.09269804,94053.0,94052.0,0.13672636]
[1736356533544,0.09275457,94074.0,94056.0,0.075]
[1736356533755,0.09275457,94074.0,94073.0,0.13672636]
[1736356534395,0.09275457,94074.0,94073.0,0.27045195]
[1736356535027,0.05398591,94077.0,94073.0,0.27045195]
[1736356535028,0.212507,94115.0,94088.0,0.13672636]
[1736356535233,0.212507,94115.0,94088.0,0.41402612]
[1736356535234,0.212521,94109.0,94088.0,0.41402612]
[1736356535434,0.212521,94109.0,94095.0,0.0941866]
[1736356535560,0.212499,94118.0,94095.0,0.30972636]
[1736356535766,0.2126846,94112.0,94095.0,0.15972636]
[1736356535967,0.212544,94099.0,94095.0,0.15972636]
[1736356536192,0.212544,94099.0,94095.0,0.0941866]
[1736356536367,0.212544,94099.0,94095.0,0.023]
[1736356536732,0.0001706,94112.0,94095.0,0.08853976]
[1736356536733,0.00149927,94096.0,94095.0,0.08853976]
[1736356536929,0.0001708,94096.0,94095.0,0.1045124]
[1736356537155,0.0001708,94096.0,94095.0,0.33357414]
[1736356537345,0.0001708,94096.0,94095.0,0.42190126]
[1736356537550,0.0091708,94096.0,94095.0,0.42290126]
[1736356537764,0.0091708,94096.0,94095.0,0.42490126]
[1736356537983,0.0001708,94096.0,94095.0,0.1696015]
[1736356538200,0.0031708,94096.0,94095.0,0.03087514]
[1736356538633,0.0041708,94096.0,94095.0,0.03087514]
[1736356538842,0.0041708,94096.0,94095.0,0.023]
[1736356539047,0.0031708,94096.0,94095.0,0.03087514]
[1736356539478,0.0061708,94096.0,94095.0,0.03087514]
[1736356539681,0.3788122,94096.0,94095.0,0.03087514]
[1736356540315,0.3758122,94096.0,94095.0,0.00787514]
[1736356540527,0.3848122,94096.0,94095.0,0.00887514]
[1736356540736,0.48911196,94096.0,94095.0,0.001]
[1736356540941,0.47711196,94096.0,94089.0,0.06553976]
[1736356541145,0.212557,94093.0,94089.0,0.06553976]
[1736356541568,0.47911196,94096.0,94089.0,0.06553976]
[1736356541769,0.47911196,94096.0,94091.0,0.023]
[1736356541770,0.00132862,94095.0,94091.0,0.023]
[1736356541976,0.10429976,94094.0,94067.0,0.06553976]
[1736356542149,0.212618,94066.0,94065.0,0.06553976]
[1736356542371,0.3727565,94066.0,94065.0,0.06553976]
[1736356542572,0.3727565,94066.0,94065.0,0.06569245]
[1736356543470,0.3727565,94066.0,94065.0,0.00015269]
[1736356544039,0.3747565,94066.0,94065.0,0.00015269]
[1736356544416,0.3757565,94066.0,94065.0,0.08869245]
[1736356544840,0.3727565,94066.0,94065.0,0.02315269]
[1736356545048,0.47705626,94066.0,94065.0,0.00015269]
[1736356545255,0.58405626,94066.0,94065.0,0.00015269]
[1736356545729,0.48405626,94066.0,94065.0,0.06569245]
[1736356545963,0.3787565,94066.0,94065.0,0.08869245]
[1736356546193,0.3787565,94066.0,94065.0,0.15987905]
[1736356546636,0.3727565,94066.0,94065.0,0.15987905]
[1736356546986,0.3737565,94066.0,94065.0,0.15987905]
[1736356547640,0.3747565,94066.0,94065.0,0.15987905]
[1736356547780,0.3737565,94066.0,94065.0,0.02315269]
[1736356547981,0.3727565,94066.0,94065.0,0.02315269]
[1736356548188,0.3757565,94066.0,94065.0,0.02315269]
[1736356548387,0.3747565,94066.0,94065.0,0.02315269]
[1736356548590,0.3747565,94066.0,94065.0,0.08869245]
[1736356548841,0.3727565,94066.0,94065.0,0.08869245]
[1736356549274,0.3737565,94066.0,94065.0,0.15987905]
[1736356549910,0.3757565,94066.0,94065.0,0.15987905]
[1736356550112,0.3737565,94066.0,94065.0,0.08869245]
[1736356550316,0.3797565,94066.0,94065.0,0.02315269]
[1736356550513,0.3787565,94066.0,94065.0,0.02315269]
[1736356550721,0.3727565,94066.0,94065.0,0.02315269]
[1736356550920,0.3767565,94066.0,94065.0,0.02315269]
[1736356551161,0.47905626,94066.0,94065.0,0.00015269]
[1736356551522,0.47705626,94066.0,94065.0,0.00015269]
[1736356551661,0.48305626,94066.0,94065.0,0.00015269]
[1736356551860,0.48505626,94066.0,94065.0,0.00015269]
[1736356552299,0.48305626,94066.0,94065.0,0.00015269]
[1736356552917,0.47705626,94066.0,94065.0,0.00015269]
[1736356553125,0.47705626,94066.0,94065.0,0.06569245]
[1736356553489,0.47705626,94066.0,94065.0,0.00015269]
[1736356553490,0.3787565,94066.0,94065.0,0.00015269]
[1736356553833,0.58505626,94066.0,94065.0,0.00015269]
[1736356554909,0.89842326,94066.0,94065.0,0.00015269]
[1736356555120,0.83038626,94066.0,94065.0,0.00015269]
[1736356555345,1.00919966,94066.0,94065.0,0.00015269]
[1736356555567,1.0436599,94066.0,94065.0,6.9e-07]
[1736356555796,1.0436599,94066.0,94050.0,4e-05]
[1736356555797,0.52592364,94051.0,94050.0,4e-05]
[1736356555998,1.003185,94051.0,94050.0,4e-05]
[1736356556199,2.524242,94051.0,94050.0,4e-05]
[1736356556400,2.939993,94051.0,94050.0,4e-05]
[1736356556635,2.939993,94051.0,93991.0,0.0711866]
[1736356556636,0.312718,94021.0,93991.0,0.0711866]
[1736356556784,0.95885516,94021.0,94004.0,0.06553976]
[1736356556999,0.79004616,94021.0,94004.0,0.06553976]
[1736356557366,0.79004616,94021.0,94005.0,0.06553976]
[1736356557739,0.79904616,94021.0,94005.0,0.06553976]
[1736356558289,0.79904616,94021.0,93986.0,0.04257238]
[1736356558290,0.79004616,94021.0,93993.0,0.0711866]
[1736356558479,0.79404616,94021.0,94000.0,0.00106383]
[1736356558653,0.79404616,94021.0,94000.0,0.06660359]
[1736356558857,0.79004616,94021.0,94000.0,0.00106383]
[1736356559257,0.79504616,94021.0,94000.0,0.06660359]
[1736356559956,0.79504616,94021.0,94004.0,0.06553976]
[1736356560159,0.79504616,94021.0,94006.0,0.06553976]
[1736356560543,0.79904616,94021.0,94006.0,0.06553976]
[1736356560742,0.80504616,94021.0,94006.0,0.06553976]
[1736356561097,0.79604616,94021.0,94000.0,0.00106383]
[1736356561300,1.3704328,94021.0,94000.0,0.00106383]
[1736356561508,0.462763,94001.0,94000.0,0.00106383]
[1736356561714,2.0189728,94001.0,94000.0,0.00157239]
[1736356561933,2.3100068,94001.0,94000.0,3.9e-07]
[1736356562133,0.49724624,93991.0,93990.0,3.9e-07]
[1736356562342,1.0788926,93991.0,93990.0,3.9e-07]
[1736356562556,0.03446024,93987.0,93986.0,0.04177277]
[1736356562764,1.90978433,93987.0,93986.0,0.04177277]
[1736356562968,1.9240444,93987.0,93986.0,7.7e-07]
[1736356563178,0.28311316,93987.0,93986.0,7.7e-07]
[1736356563635,0.13311316,93987.0,93986.0,7.7e-07]
[1736356563814,0.13444354,93987.0,93986.0,7.7e-07]
[1736356564018,0.10563014,93987.0,93986.0,7.7e-07]
[1736356564218,0.11463014,93987.0,93986.0,7.7e-07]
[1736356564447,0.10563014,93987.0,93986.0,7.7e-07]
[1736356564898,0.12063014,93987.0,93986.0,7.7e-07]
[1736356565107,0.12063014,93987.0,93986.0,0.06554053]
[1736356565108,0.01633017,93987.0,93986.0,0.06554053]
[1736356565327,0.009,93987.0,93986.0,0.06554053]
[1736356565545,0.009,93987.0,93986.0,0.15972713]
[1736356565998,0.009,93987.0,93986.0,0.08854053]
[1736356566232,0.21279,93989.0,93988.0,0.06553976]
[1736356566445,0.3731466,93991.0,93990.0,0.15972636]
[1736356566871,0.00050794,94001.0,94000.0,0.13672636]
[1736356567697,0.00050794,94001.0,94000.0,0.26402612]
[1736356567922,0.00050794,94001.0,94000.0,0.38882612]
[1736356568148,0.00050794,94001.0,94000.0,0.28882612]
[1736356568370,0.00050794,94001.0,94000.0,0.38882612]
[1736356568578,0.00132948,94036.0,94020.0,0.05972636]
[1736356568789,0.212664,94045.0,94020.0,0.16402612]
[1736356568995,0.00132946,94039.0,94020.0,0.16402612]
[1736356569149,0.21400746,94039.0,94020.0,0.18485159]
[1736356569352,0.212683,94037.0,94020.0,0.023]
[1736356569554,0.212637,94057.0,94020.0,0.05972636]
[1736356569555,0.212694,94032.0,94020.0,0.05972636]
[1736356569987,0.212682,94037.0,94020.0,0.16402612]
[1736356570199,0.00132942,94036.0,94020.0,0.16402612]
[1736356570418,0.212697,94031.0,94020.0,0.023]
[1736356570589,0.1,94051.0,94020.0,0.05972636]
[1736356570768,0.053,94021.0,94020.0,0.05972636]
[1736356570972,0.05,94021.0,94020.0,0.05972636]
[1736356571184,0.05,94021.0,94020.0,0.023]
[1736356571331,0.05,94021.0,94020.0,0.03672636]
[1736356571332,0.0513296,94021.0,94020.0,0.03672636]
[1736356571536,0.21272,94020.0,93986.0,7.7e-07]
[1736356571876,0.00132976,94019.0,94009.0,0.03672636]
[1736356572221,0.212725,94018.0,94015.0,0.03672636]
[1736356572332,0.212738,94012.0,94005.0,0.03672636]
[1736356572566,0.212747,94009.0,94005.0,0.03672636]
[1736356572772,0.212759,94003.0,94000.0,0.00015249]
[1736356572976,0.362763,94001.0,94000.0,0.00015249]
[1736356573182,0.692562,94001.0,94000.0,0.00015249]
[1736356573628,0.62263076,94001.0,94000.0,0.00015249]
[1736356573804,0.60031276,94001.0,94000.0,0.00015249]
[1736356574325,0.61959726,94001.0,94000.0,0.00015249]
[1736356574530,0.62359726,94001.0,94000.0,0.00015249]
[1736356574903,0.61959726,94001.0,94000.0,0.00015249]
[1736356575451,0.61959726,94001.0,93978.0,8.53e-05]
[1736356575452,0.212811,93980.0,93979.0,0.01326246]
[1736356575654,0.69024316,93980.0,93979.0,0.01326246]
[1736356575948,0.69024316,93980.0,93979.0,0.01214246]
[1736356576280,0.70952766,93980.0,93979.0,0.01214246]
[1736356576496,1.05915766,93980.0,93979.0,0.01102246]
[1736356576780,1.01292866,93980.0,93979.0,0.01102246]
[1736356576982,0.86852766,93980.0,93979.0,0.00990246]
[1736356577221,1.02684066,93980.0,93979.0,0.00990246]
[1736356577481,1.21445666,93980.0,93979.0,0.00990246]
[1736356577723,1.22345666,93980.0,93979.0,0.04520246]
[1736356577901,0.86852766,93980.0,93979.0,0.04520246]
[1736356578326,0.71852766,93980.0,93979.0,0.04520246]
[1736356578509,0.51071666,93980.0,93979.0,0.04520246]
[1736356578935,0.4064169,93980.0,93979.0,0.04520246]
[1736356579135,0.4064169,93980.0,93979.0,0.08192882]
[1736356579456,0.3974169,93980.0,93979.0,0.08192882]
[1736356579849,0.4054169,93980.0,93979.0,0.10492882]
[1736356580100,0.3924169,93980.0,93979.0,0.10492882]
[1736356580508,0.3994169,93980.0,93979.0,0.10492882]
[1736356580732,0.3954169,93980.0,93979.0,0.10492882]
[1736356580945,0.3924169,93980.0,93979.0,0.10492882]
[1736356581340,0.3924169,93980.0,93979.0,0.04520246]
[1736356581955,0.49671666,93980.0,93979.0,0.04520246]
[1736356582365,0.3924169,93980.0,93979.0,0.04520246]
[1736356582564,0.3924169,93980.0,93979.0,0.08192882]
[1736356582677,0.3924169,93980.0,93979.0,0.10492882]
[1736356583096,0.3964169,93980.0,93979.0,0.14992882]
[1736356583313,0.0192845,93980.0,93979.0,0.26286055]
[1736356583508,0.0202845,93980.0,93979.0,0.26286055]
[1736356583713,0.0222845,93980.0,93979.0,0.26286055]
[1736356583917,0.21291729,94001.0,93979.0,0.26286055]
[1736356583918,0.00015229,94001.0,94000.0,0.03672636]
[1736356584130,0.00015229,94001.0,94000.0,0.05972636]
[1736356584532,0.00015229,94001.0,94000.0,0.25035966]
[1736356584739,0.05,94021.0,94020.0,0.03672636]
[1736356584945,0.05,94021.0,94020.0,0.06816573]
[1736356585158,0.05,94021.0,94020.0,0.17246549]
[1736356585356,0.05,94021.0,94020.0,0.43342728]
[1736356585565,0.212649,94052.0,94029.0,0.2127]
[1736356585829,0.0003232,94039.0,94038.0,0.05972636]
[1736356586192,0.0003232,94039.0,94038.0,0.11371788]
[1736356586414,0.0003232,94039.0,94038.0,0.11371786]
[1736356586821,0.0003232,94039.0,94038.0,0.11265462]
[1736356587184,0.0003232,94039.0,94038.0,0.01135486]
[1736356587390,0.0003232,94039.0,94038.0,0.01335486]
[1736356587590,0.0003232,94039.0,94038.0,0.01035486]
[1736356587782,0.0003232,94039.0,94038.0,0.00835486]
[1736356588066,0.0003232,94039.0,94038.0,0.00706329]
[1736356588278,0.0003232,94039.0,94038.0,0.01035486]
[1736356588449,0.0003232,94039.0,94038.0,0.002]
[1736356588680,0.0003232,94039.0,94038.0,0.13871789]
[1736356589086,0.0003232,94039.0,94038.0,0.23765462]
[1736356589290,0.0003232,94039.0,94038.0,0.13765462]
[1736356589690,0.0003232,94039.0,94038.0,0.14065462]
[1736356590512,0.0003232,94039.0,94038.0,0.01335486]
[1736356591147,0.0003232,94039.0,94038.0,0.1417179]
[1736356591346,0.0003232,94039.0,94038.0,0.14065462]
[1736356591456,0.0003232,94039.0,94038.0,0.14171787]
[1736356591664,0.0003232,94039.0,94038.0,0.01335486]
[1736356593216,0.0003232,94039.0,94038.0,0.14065462]
[1736356593418,0.0003232,94039.0,94038.0,0.11765462]
[1736356593628,0.0003232,94039.0,94038.0,0.01335486]
[1736356593838,0.0003232,94039.0,94038.0,0.11765462]
[1736356594053,0.0003232,94039.0,94038.0,0.14171783]
[1736356594254,0.0003232,94039.0,94038.0,0.35333362]
[1736356594381,0.0003232,94039.0,94038.0,0.14065462]
[1736356595300,0.0003232,94039.0,94038.0,0.14171788]
[1736356595850,0.0003232,94039.0,94038.0,0.34171788]
[1736356596045,0.0003232,94039.0,94038.0,0.34065462]
[1736356596379,0.0003232,94039.0,94038.0,0.14065462]
[1736356596575,0.0003232,94039.0,94038.0,0.24065462]
[1736356596892,0.0003232,94039.0,94038.0,0.13565462]
[1736356597126,0.0003232,94039.0,94038.0,0.13765462]
[1736356597476,0.0013232,94039.0,94038.0,0.14065462]
[1736356597703,0.0013232,94039.0,94038.0,0.13865462]
[1736356598119,0.0013232,94039.0,94038.0,0.14065462]
[1736356598273,0.0003232,94039.0,94038.0,0.13765462]
[1736356599331,0.0003232,94039.0,94038.0,0.13565462]
[1736356599687,0.0003232,94039.0,94038.0,0.13871785]
[1736356599892,0.0003232,94039.0,94038.0,0.14171785]
[1736356600092,0.0003232,94039.0,94038.0,0.13671785]
[1736356600302,0.0003232,94039.0,94038.0,0.41642723]
[1736356600516,0.0003232,94039.0,94038.0,0.417364]
[1736356600723,0.0003232,94039.0,94038.0,0.33765462]
[1736356600930,0.0001706,94059.0,94038.0,0.62115462]
[1736356601131,0.0001706,94059.0,94056.0,0.023]
[1736356601360,0.0001706,94059.0,94055.0,0.312641]
[1736356601361,0.0001706,94059.0,94058.0,0.023]
[1736356601597,0.0001706,94059.0,94058.0,0.12836268]
[1736356601800,0.0001706,94059.0,94058.0,0.13556076]
[1736356602630,0.0001706,94059.0,94058.0,0.15088736]
[1736356603094,0.0001706,94059.0,94058.0,0.15195028]
[1736356603298,0.0011706,94059.0,94058.0,0.15195028]
[1736356603503,0.0001706,94059.0,94058.0,0.13662368]
[1736356603914,0.0001706,94059.0,94058.0,0.14362368]
[1736356604133,0.0001706,94059.0,94058.0,0.13756076]
[1736356604338,0.0001706,94059.0,94058.0,0.13556076]
[1736356604545,0.0001706,94059.0,94058.0,0.14362369]
[1736356604546,0.0011706,94059.0,94058.0,0.14362369]
[1736356604783,0.0001706,94059.0,94058.0,0.13862369]
[1736356605611,0.0001706,94059.0,94058.0,0.33862369]
[1736356605821,0.0001706,94059.0,94058.0,0.48756076]
[1736356606049,0.0001706,94108.0,94082.0,0.173]
[1736356606258,0.0001706,94108.0,94081.0,0.0776]
[1736356606259,0.0001706,94108.0,94099.0,0.212542]
[1736356606464,0.00067918,94104.0,94101.0,0.312537]
[1736356606673,0.00067918,94104.0,94103.0,0.212533]
[1736356606875,0.00067918,94104.0,94103.0,0.33983276]
[1736356607082,0.0001706,94108.0,94107.0,0.335524]
[1736356607284,0.00032313,94108.0,94107.0,0.43982376]
[1736356607485,0.00032313,94108.0,94107.0,0.44750131]
[1736356608930,0.00032313,94108.0,94107.0,0.00823798]
[1736356609451,0.00032313,94108.0,94107.0,0.10429976]
[1736356609666,0.00032313,94108.0,94107.0,0.12836221]
[1736356609887,0.00032313,94108.0,94107.0,0.11253774]
[1736356610093,0.00032313,94108.0,94107.0,0.11360018]
[1736356610294,0.00032313,94108.0,94107.0,0.21255536]
[1736356610527,0.00032313,94108.0,94107.0,0.21149292]
[1736356610722,0.00023,94108.0,94107.0,0.21149292]
[1736356611568,0.00023,94108.0,94107.0,0.11253774]
[1736356611805,0.00023,94108.0,94107.0,0.00823798]
[1736356612266,0.00023,94108.0,94103.0,0.02088963]
[1736356612495,0.00023,94108.0,94090.0,0.01020231]
[1736356612701,0.212537,94102.0,94090.0,0.00106269]
[1736356612877,0.00023,94108.0,94096.0,0.212546]
[1736356613094,0.00023,94108.0,94097.0,0.10429976]
[1736356613297,0.212752,94108.0,94097.0,0.11258461]
[1736356613614,0.212544,94098.0,94097.0,0.00828485]
[1736356613797,0.585179,94098.0,94097.0,0.00828485]
[1736356614003,0.212529,94105.0,94087.0,0.02084748]
[1736356614252,0.212529,94105.0,94088.0,0.31792843]
[1736356614455,0.00023,94108.0,94090.0,0.003]
[1736356614659,0.212551,94095.0,94089.0,0.00832236]
[1736356614926,0.1,94104.0,94068.0,0.0773]
[1736356615181,0.00132857,94103.0,94074.0,0.212598]
[1736356615384,0.00023,94108.0,94082.0,0.02127315]
[1736356615586,0.212555,94093.0,94082.0,0.02127315]
[1736356615807,0.212567,94088.0,94082.0,0.02127315]
[1736356616153,0.212555,94093.0,94082.0,0.02127315]
[1736356616357,0.212555,94093.0,94064.0,0.1]
[1736356616358,0.0013285,94092.0,94063.0,0.212623]
[1736356616572,0.0013285,94092.0,94068.0,0.212612]
[1736356616573,0.212575,94085.0,94068.0,0.212612]
[1736356616740,0.212585,94080.0,94073.0,0.02121975]
[1736356616942,0.372689,94080.0,94063.0,0.212623]
[1736356617291,0.212618,94065.0,94064.0,0.00843961]
[1736356617692,0.212618,94065.0,94050.0,0.0353]
[1736356617693,0.3727811,94065.0,94050.0,0.0353]
[1736356617898,0.00122624,94064.0,94050.0,0.0353]
[1736356618047,0.1793,94076.0,94050.0,0.0353]
[1736356618048,0.212634,94059.0,94050.0,0.0353]
[1736356618260,0.5854279,94059.0,94051.0,0.00850061]
[1736356618478,0.3687939,94059.0,94051.0,0.00050878]
[1736356618683,0.212621,94064.0,94051.0,0.00050878]
[1736356618907,0.21262,94065.0,94052.0,0.10429976]
[1736356619531,0.212629,94061.0,94051.0,0.00050878]
[1736356619703,0.212641,94056.0,94051.0,0.00050878]
[1736356620071,0.004,94065.0,94051.0,0.00050878]
[1736356620476,0.205526,94064.0,94051.0,0.00050878]
[1736356620780,0.212648,94052.0,94051.0,0.00050878]
[1736356620957,0.6854866,94052.0,94051.0,0.00050878]
[1736356621190,0.93978636,94052.0,94051.0,0.00050878]
[1736356621362,1.65103936,94052.0,94051.0,0.00050878]
[1736356621515,1.07058636,94052.0,94051.0,0.00050878]
[1736356621941,1.02178636,94052.0,94051.0,0.00150878]
[1736356622144,0.3728386,94052.0,94051.0,0.00150878]
[1736356622491,0.3728386,94052.0,94051.0,0.00050878]
[1736356622895,0.3768386,94052.0,94051.0,0.00050878]
[1736356623022,0.3808386,94052.0,94051.0,0.00050878]
[1736356623228,0.48113836,94052.0,94051.0,0.00050878]
[1736356623431,0.47713836,94052.0,94051.0,0.00050878]
[1736356623637,0.3768386,94052.0,94051.0,0.00050878]
[1736356623860,0.3728386,94052.0,94051.0,0.00050878]
[1736356624078,0.1828,94083.0,94051.0,0.00050878]
[1736356624242,0.009,94052.0,94051.0,0.21415778]
[1736356624440,0.212605,94071.0,94051.0,0.02228297]
[1736356624648,0.212605,94071.0,94051.0,0.12658273]
[1736356624853,0.212587,94079.0,94052.0,0.212648]
[1736356624854,0.425174,94079.0,94052.0,0.212648]
[1736356625060,0.425174,94079.0,94053.0,0.212646]
[1736356625061,0.212596,94075.0,94053.0,0.212646]
[1736356625259,0.212596,94075.0,94053.0,0.31694576]
[1736356625438,0.212611,94069.0,94051.0,0.02228297]
[1736356625807,0.10429976,94082.0,94052.0,0.12729976]
[1736356625984,0.1,94076.0,94051.0,0.00050878]
[1736356626143,0.10429976,94075.0,94051.0,0.00050878]
[1736356626344,0.212631,94060.0,94051.0,0.00050878]
[1736356626547,0.3727711,94060.0,94051.0,0.00050878]
[1736356626749,0.212621,94064.0,94051.0,0.00050878]
[1736356626990,0.424943,94064.0,94051.0,0.00050878]
[1736356627257,0.212639,94056.0,94051.0,0.00150878]
[1736356627469,0.15,94074.0,94051.0,0.00050878]
[1736356627672,0.212639,94057.0,94051.0,0.00050878]
[1736356627851,0.15,94066.0,94051.0,0.00250878]
[1736356628060,0.212624,94063.0,94051.0,0.00250878]
[1736356628208,0.15,94075.0,94051.0,0.00250878]
[1736356628209,0.212641,94055.0,94051.0,0.00250878]
[1736356628423,0.5854306,94055.0,94051.0,0.00250878]
[1736356628624,0.3727896,94055.0,94051.0,0.00250878]
[1736356629200,0.3727896,94055.0,94051.0,0.00050878]
[1736356629372,0.212642,94055.0,94051.0,0.00450878]
[1736356629800,0.212642,94055.0,94051.0,0.00050878]
[1736356629801,0.3727768,94055.0,94051.0,0.00050878]
[1736356629999,0.1,94091.0,94052.0,0.212648]
[1736356630000,0.212587,94080.0,94052.0,0.212648]
[1736356630206,0.003,94055.0,94054.0,0.235643]
[1736356630492,0.001,94055.0,94054.0,0.42432929]
[1736356630693,0.003,94055.0,94054.0,0.42432929]
[1736356630909,0.00177066,94055.0,94054.0,0.56932929]
[1736356631112,0.21255,94096.0,94055.0,0.1]
[1736356631316,0.21255,94096.0,94074.0,0.212598]
[1736356631487,0.212542,94099.0,94077.0,0.023]
[1736356631689,0.09233495,94110.0,94090.0,0.023]
[1736356631888,0.212524,94107.0,94091.0,0.10429976]
[1736356632088,0.09233495,94110.0,94096.0,0.023]
[1736356632267,0.09233495,94110.0,94099.0,0.212542]
[1736356632468,0.09233495,94110.0,94100.0,0.12836233]
[1736356632674,0.0001706,94113.0,94104.0,0.023]
[1736356632870,0.00023,94108.0,94106.0,0.023]
[1736356633072,0.00023,94108.0,94107.0,0.41705542]
[1736356633278,0.00023,94108.0,94107.0,0.52423104]
[1736356633519,0.00123,94108.0,94107.0,0.52423104]
[1736356633721,0.00123,94108.0,94107.0,0.21170704]
[1736356634538,0.00223,94108.0,94107.0,0.21170704]
[1736356634710,0.00123,94108.0,94107.0,0.13553774]
[1736356634911,0.00023,94108.0,94107.0,0.01223798]
[1736356635333,0.00123,94108.0,94107.0,0.02123798]
[1736356635535,0.00123,94108.0,94107.0,0.01723798]
[1736356635736,0.00123,94108.0,94107.0,0.02123798]
[1736356636367,0.00123,94108.0,94107.0,0.16791534]
[1736356636657,0.00123,94108.0,94107.0,0.2599778]
[1736356636658,0.00023,94108.0,94107.0,0.2599778]
[1736356636858,0.00023,94108.0,94107.0,0.25891534]
[1736356637065,0.00123,94108.0,94107.0,0.26791534]
[1736356637288,0.0001706,94113.0,94108.0,0.448042]
[1736356637441,0.0001706,94113.0,94110.0,0.023]
[1736356637636,0.0001706,94113.0,94111.0,0.12836208]
[1736356637907,0.0001706,94113.0,94111.0,0.33658131]
[1736356638107,0.0001706,94113.0,94112.0,0.516312]
[1736356638319,0.0001706,94116.0,94115.0,0.223]
[1736356638528,0.0001706,94116.0,94115.0,0.47829952]
[1736356638728,0.0001704,94142.0,94121.0,0.2]
[1736356638934,0.0001704,94142.0,94121.0,0.32836189]
[1736356639133,0.0001704,94142.0,94121.0,0.33547213]
[1736356640328,0.0001704,94142.0,94127.0,0.2]
[1736356640499,0.0001704,94142.0,94127.0,0.40670692]
[1736356640703,0.0001704,94142.0,94133.0,0.2]
[1736356640900,0.0001704,94142.0,94133.0,0.58080169]
[1736356641100,0.0001704,94142.0,94133.0,0.66855591]
[1736356641348,0.212343,94188.0,94153.0,0.25792]
[1736356641549,0.212343,94188.0,94153.0,0.45225426]
[1736356641783,0.00032305,94154.0,94153.0,0.55225426]
[1736356642198,0.00032305,94154.0,94153.0,0.57342868]
[1736356642373,0.00032305,94154.0,94153.0,0.22547418]
[1736356642596,0.00032305,94154.0,94153.0,0.10429976]
[1736356643005,0.00032305,94154.0,94153.0,0.003]
[1736356643829,0.10562281,94154.0,94153.0,0.009]
[1736356644029,0.62932265,94154.0,94153.0,0.009]
[1736356644345,0.1,94140.0,94118.0,0.0944726]
[1736356644549,0.1,94140.0,94084.0,0.0779]
[1736356644550,0.212538,94101.0,94084.0,0.1723726]
[1736356644677,0.212557,94093.0,94084.0,0.0944726]
[1736356644876,0.212559,94092.0,94084.0,0.0944726]
[1736356645062,0.3726419,94093.0,94084.0,0.0944726]
[1736356645262,0.212562,94090.0,94084.0,0.0944726]
[1736356645470,0.425132,94088.0,94084.0,0.0944726]
[1736356645835,0.15,94085.0,94084.0,0.0944726]
[1736356646080,0.15,94083.0,94080.0,0.0353]
[1736356646284,0.25,94081.0,94080.0,0.0353]
[1736356646486,0.20429976,94081.0,94080.0,0.0353]
[1736356646690,0.1,94081.0,94080.0,0.03580878]
[1736356647050,0.10429976,94081.0,94080.0,0.03580878]
[1736356647860,0.009,94081.0,94080.0,0.03680878]
[1736356648260,0.00887211,94081.0,94080.0,0.03680878]
[1736356648776,0.00987211,94081.0,94080.0,0.03680878]
[1736356648983,0.00122624,94083.0,94080.0,0.00150878]
[1736356649189,0.18715711,94084.0,94080.0,0.00150878]
[1736356649190,0.21380624,94082.0,94080.0,0.00150878]
[1736356649392,0.10429976,94081.0,94080.0,0.00150878]
[1736356649604,0.255526,94081.0,94080.0,0.00150878]
[1736356649814,0.35429976,94081.0,94080.0,0.00050878]
[1736356650019,0.35429976,94081.0,94042.0,8.51e-05]
[1736356650020,0.1,94051.0,94042.0,8.51e-05]
[1736356650225,0.362668,94043.0,94042.0,0.00023763]
[1736356650501,0.46696776,94043.0,94042.0,0.00023763]
[1736356651318,0.31696776,94043.0,94042.0,0.00023763]
[1736356651532,0.212668,94043.0,94042.0,0.00023763]
[1736356651942,0.1,94041.0,94005.0,0.212754]
[1736356652150,0.1,94041.0,93992.0,0.0776]
[1736356652151,0.212729,94017.0,94014.0,0.0001526]
[1736356652562,0.00122624,94016.0,94014.0,0.0001526]
[1736356652767,0.212732,94015.0,94014.0,0.0001526]
[1736356652974,0.1,94030.0,94014.0,0.0001526]
[1736356653183,0.47293,94030.0,94014.0,0.0001526]
[1736356653395,0.212715,94023.0,94014.0,0.0001526]
[1736356653612,0.212715,94023.0,94015.0,0.00866961]
[1736356653613,0.212729,94017.0,94015.0,0.00866961]
[1736356653807,0.37293,94017.0,94014.0,0.0031526]
[1736356654221,0.37293,94017.0,94014.0,0.0001526]
[1736356654640,0.5856278,94029.0,94014.0,0.0001526]
[1736356654856,0.001,94023.0,94015.0,0.31809428]
[1736356655067,0.001,94023.0,94015.0,0.32570037]
[1736356655270,0.212695,94032.0,94015.0,0.11296937]
[1736356655696,0.001,94017.0,94015.0,0.11296937]
[1736356655887,0.001,94017.0,94015.0,0.32569837]
[1736356656089,0.001,94017.0,94016.0,0.212729]
[1736356656228,0.001,94017.0,94016.0,0.31702876]
[1736356656427,0.001,94017.0,94010.0,0.02100826]
[1736356656631,0.212695,94032.0,94018.0,0.212725]
[1736356656827,0.21284729,94032.0,94019.0,0.00750094]
[1736356657237,0.212695,94031.0,94012.0,0.212738]
[1736356657417,0.21284729,94032.0,94015.0,0.003]
[1736356657418,0.212725,94018.0,94015.0,0.003]
[1736356657608,0.212727,94017.0,94000.0,0.0001252]
[1736356657838,0.212727,94017.0,94002.0,0.212761]
[1736356657948,0.212739,94012.0,94003.0,0.00646761]
[1736356658158,0.3729666,94012.0,94000.0,0.0001252]
[1736356658364,0.212758,94004.0,94000.0,0.0001252]
[1736356658590,0.212761,94002.0,94000.0,0.0001252]
[1736356658792,0.1,94001.0,94000.0,0.0001252]
[1736356658998,0.317116,94001.0,94000.0,0.0001252]
[1736356659204,0.35429976,94001.0,94000.0,0.0001252]
[1736356660034,0.45429976,94001.0,94000.0,0.0001252]